fUSD/lending_fUSD_20240116
["ID","MTS","AMOUNT","RATE_DAILY","PERIOD"]
[311811752,1705425813785,3289.32247818,0.00021365,2]
[311811753,1705425813812,500.0,0.00021365,2]
[311811754,1705425813835,46721.46306871,0.00021365,2]
[311811755,1705425819806,157.04,0.00021547,2]
[311811756,1705425822425,18948.40984176,0.00021999,2]
[311811757,1705425833777,12558.69342296,0.00021999,2]
[311811758,1705425839173,7471.79404314,0.00021999,2]
[311811759,1705425840021,16369.5327338,0.00021889,2]
[311811760,1705425842547,6077.73592096,0.00021999,2]
[311811761,1705425873966,205.0,0.00021046,2]
[311811762,1705425903665,341.58,0.00019383,2]
[311811763,1705425904059,341.58,0.00021647,2]
[311811764,1705425938394,737.6,0.00021286,2]
[311811765,1705425997164,292.99,0.00021302,2]
[311811766,1705425998238,213.7244039,0.00022,2]
[311811767,1705426078305,158.52,0.00021445,2]
[311811768,1705426078462,158.52,0.00021631,2]
[311811769,1705426078631,158.52,0.00021817,2]
[311811770,1705426108799,166.29,0.000213,2]
[311811771,1705426127066,158.01093806,2.5e-05,14]
[311811772,1705426158030,-185.63,0.00022,2]
[311811773,1705426158464,-168.85243675,0.00022,2]
[311811774,1705426159017,-150.0,0.00022,2]
[311811775,1705426159407,-150.0,0.00022,2]
[311811789,1705426178607,1914.4878116,0.00021999,2]
[311811790,1705426179825,532.73021248,0.00021999,2]
[311811794,1705426186050,4702.22595669,0.00021999,2]
[311811795,1705426186870,10000.0,0.00021644,2]
[311811796,1705426199379,3004.11480193,0.00021999,2]
[311811798,1705426219048,749.33,0.0002145,2]
[311811799,1705426221789,164.07,0.00021433,2]
[311811821,1705426232039,-158.52,0.00022003,2]
[311811824,1705426232049,-504.425,0.00022085,2]
[311811825,1705426232060,-1263.17831455,0.00022085,2]
[311811826,1705426232069,-914.32168545,0.00022086,2]
[311811827,1705426232099,-4910.35077126,0.00022086,2]
[311811840,1705426232218,-2404.76771381,0.00022086,2]
[311811842,1705426232227,-155.9,0.00022089,2]
[311811844,1705426232236,-2500.0,0.00022111,2]
[311811846,1705426232246,-300.0,0.00022189,2]
[311811848,1705426232255,-150.0,0.00022189,2]
[311811850,1705426232264,-158.52,0.0002219,2]
[311811852,1705426232273,-525.35,0.0002219,2]
[311811854,1705426232282,-1000.0,0.000222,2]
[311811856,1705426232293,-1910.5667509,0.00022208,2]
[311811858,1705426232303,-191.1567856,0.00022208,2]
[311811860,1705426232312,-327.40388082,0.00022209,2]
[311811862,1705426232322,-4690.56847941,0.00022209,2]
[311811864,1705426232331,-67589.77804226,0.0002221,2]
[311811867,1705426232343,-815.6374002,0.0002221,2]
[311811870,1705426232365,-338.9958,0.0002221,2]
[311811876,1705426232400,-454.872,0.0002221,2]
[311811946,1705426233060,-2262.44872934,0.0002221,2]
[311811947,1705426233073,-4371.74800001,0.0002221,2]
[311811948,1705426233084,-10929.99999999,0.0002221,2]
[311811949,1705426233096,-12664.61507924,0.0002221,2]
[311811950,1705426233163,-11737.84626998,0.0002221,2]
[311811956,1705426239156,-18150.8898515,0.0002221,2]
[311811957,1705426239165,-2115.20210943,0.00022211,2]
[311811958,1705426239181,-2303.90485715,0.00022211,2]
[311811959,1705426239193,-3882.12262492,0.00022211,2]
[311811960,1705426239322,-583.07232344,0.00022211,2]
[311811961,1705426239334,-654.48243675,0.00022211,2]
[311811962,1705426239377,-286.01273334,0.00022211,2]
[311811963,1705426239389,-2551.59010593,0.00022211,2]
[311811975,1705426241223,-582.17636691,0.00022211,2]
[311811976,1705426241235,-967.90467562,0.00022211,2]
[311811995,1705426243178,-456.18934559,0.00022209,4]
[311811996,1705426243188,-1031.14834444,0.00022211,2]
[311811997,1705426243199,-10503.58999993,0.00022211,2]
[311812005,1705426246257,-344.83399891,0.00022211,2]
[311812008,1705426267975,161.91,0.00021908,2]
[311812009,1705426433353,409.92,0.00021644,2]
[311812010,1705426468532,351.32,0.00019488,2]
[311812011,1705426468762,351.32,0.00021752,2]
[311812012,1705426519870,158.52,0.00021603,2]
[311812013,1705426594974,205.0,0.00021828,2]
[311812014,1705426616134,166.22,0.00021604,2]
[311812015,1705426673222,292.99,0.00021383,2]
[311812016,1705426692199,157.56,0.00021596,2]
[311812017,1705426739293,699.37,0.00021391,2]
[311812018,1705426772231,10000.0,0.00021644,2]
[311812019,1705426934356,316.18,0.00019619,2]
[311812020,1705426934971,316.18,0.00021883,2]
[311812021,1705426962473,672.06,0.00021582,2]
[311812022,1705426983453,158.52,0.00021746,2]
[311812023,1705427061474,166.22,0.00021587,2]
[311812024,1705427072307,178.51935979,0.00021999,2]
[311812025,1705427147323,155.9,0.00021537,2]
[311812026,1705427212117,832.9,0.0002128,2]
[311812028,1705427254893,10000.0,0.00021644,2]
[311812029,1705427312359,360.97277745,0.00021941,2]
[311812082,1705427369279,164.25,0.0002119,2]
[311812083,1705427417831,462.35,0.00021167,2]
[311812084,1705427432215,-466.62551342,0.00022009,2]
[311812085,1705427432324,-538.89466019,0.00022009,2]
[311812086,1705427432335,-745.68030549,0.00022009,2]
[311812087,1705427432435,-436.58,0.00022009,2]
[311812088,1705427432546,-580.09952,0.00022009,2]
[311812110,1705427434146,360.97277743,0.00021941,2]
[311812113,1705427438298,-242.40849757,0.00022008,2]
[311812114,1705427438308,-133.0685517,0.00022009,2]
[311812115,1705427438317,-516.29328463,0.0002201,2]
[311812116,1705427438326,-1043.66290087,0.0002201,2]
[311812117,1705427438336,-295.40555488,0.00022011,2]
[311812118,1705427438345,-3018.06121035,0.00022011,2]
[311812119,1705427438357,-25.50842112,0.00022011,2]
[311812120,1705427438366,-2253.29157888,0.00022011,2]
[311812121,1705427438378,-65.7651749,0.00022011,2]
[311812122,1705427438388,-286.58393191,0.00022012,2]
[311812123,1705427438397,-2137.08564927,0.00022012,2]
[311812124,1705427438408,-265.40939354,0.00022012,2]
[311812125,1705427438418,-2779.50067626,0.00022012,2]
[311812126,1705427438427,-220.99406538,0.00022012,2]
[311812127,1705427438437,-5332.16927262,0.00022012,2]
[311812128,1705427438446,-404.1868368,0.00022013,2]
[311812129,1705427438456,-417.97849528,0.00022013,2]
[311812130,1705427438465,-279.24625351,0.00022013,2]
[311812131,1705427438475,-260.10440019,0.00022014,2]
[311812132,1705427438485,-155.0,0.00022014,2]
[311812133,1705427438495,-234.33508647,0.00022014,2]
[311812134,1705427438506,-6436.33635297,0.00022014,2]
[311812135,1705427438516,-473.12301771,0.00022014,2]
[311812136,1705427438526,-3858.29273374,0.00022014,2]
[311812137,1705427438535,-248.66279264,0.00022015,2]
[311812138,1705427438544,-1889.62325418,0.00022015,2]
[311812139,1705427438553,-4624.96257004,0.00022015,2]
[311812140,1705427438564,-155.0,0.00022016,2]
[311812141,1705427438573,-150.0,0.00022026,2]
[311812142,1705427438587,-6096.65255596,0.00022029,2]
[311812143,1705427438596,-13453.03060695,0.00022031,2]
[311812144,1705427438608,-1297.59,0.00022031,2]
[311812145,1705427438633,-7056.19332217,0.00022031,2]
[311812146,1705427438644,-1006.88595186,0.00022031,2]
[311812147,1705427438659,-1111.86806754,0.00022031,2]
[311812148,1705427438672,-4525.29631233,0.00022031,2]
[311812150,1705427438688,-52020.0,0.00022031,2]
[311812153,1705427438713,-166978.30672549,0.00022031,2]
[311812155,1705427438724,-282806.5185039,0.00022037,2]
[311812157,1705427438733,-178.51935977,0.00022041,2]
[311812159,1705427438742,-7465.28,0.00022041,2]
[311812161,1705427438753,-150.0,0.00022046,2]
[311812164,1705427438762,-178.51935977,0.00022083,2]
[311812166,1705427438771,-238.00921258,0.00022102,2]
[311812167,1705427438780,-6079.2175,0.00022112,2]
[311812169,1705427438790,-60721.3647,0.00022112,2]
[311812170,1705427438799,-178.51935977,0.00022125,2]
[311812171,1705427438808,-178.51935977,0.00022168,2]
[311812172,1705427438817,-150.0,0.00022177,2]
[311812173,1705427438827,-150.0,0.00022192,2]
[311812174,1705427438836,-1000.0,0.000222,2]
[311812175,1705427438845,-243.09306325,0.00022209,2]
[311812176,1705427438854,-178.51935977,0.0002221,2]
[311812177,1705427438864,-500.27444784,0.0002221,2]
[311812178,1705427438873,-241.50228797,0.0002221,2]
[311812179,1705427438882,-569.14646065,0.0002221,2]
[311812180,1705427438891,-262.56388506,0.0002221,2]
[311812181,1705427438903,-6245.2263515,0.0002221,2]
[311812182,1705427438912,-2766.5766924,0.0002221,2]
[311812183,1705427438921,-155.0,0.0002221,2]
[311812184,1705427438931,-3325.25210067,0.0002221,2]
[311812185,1705427438940,-155.1808226,0.0002221,2]
[311812186,1705427438949,-155.19735349,0.0002221,2]
[311812187,1705427438959,-155.47136183,0.0002221,2]
[311812188,1705427438968,-2304.07734728,0.0002221,2]
[311812189,1705427438977,-36193.91142323,0.00022211,2]
[311812190,1705427438986,-1030.29696618,0.00022212,2]
[311812191,1705427438995,-248.04172499,0.00022212,2]
[311812192,1705427439005,-454.872,0.00022212,2]
[311812193,1705427439014,-1000.0,0.00022212,2]
[311812194,1705427439024,-237648.6114,0.00022212,2]
[311812195,1705427439033,-2026.5976,0.00022212,2]
[311812196,1705427439042,-159.88,0.00022219,2]
[311812197,1705427439052,-157.04,0.00022223,2]
[311812198,1705427439061,-178.51935977,0.00022252,2]
[311812199,1705427439071,-832.9,0.00022258,2]
[311812200,1705427439080,-178.51935977,0.00022294,2]
[311812201,1705427439089,-958190.07815479,0.0002231,2]
[311812202,1705427439102,-778.43425527,0.0002231,2]
[311812203,1705427439113,-2135.73724062,0.0002231,2]
[311812204,1705427439149,-2342.94665092,0.0002231,2]
[311812205,1705427439161,-1685.38135919,0.0002231,2]
[311812206,1705427439173,-782.71098342,0.0002231,2]
[311812207,1705427439292,-7044.86805012,0.0002231,2]
[311812208,1705427439354,-692.73799719,0.0002231,2]
[311812251,1705427443950,-487.77732636,0.00022007,2]
[311812252,1705427443962,-77679.67370868,0.0002231,2]
[311812253,1705427444025,-2634.1279362,0.0002231,2]
[311812254,1705427444039,-13230.60350459,0.0002231,2]
[311812255,1705427444063,-2366.25066617,0.0002231,2]
[311812256,1705427444074,-1019.48332495,0.0002231,2]
[311812257,1705427444086,-828.94073578,0.0002231,2]
[311812258,1705427444129,-5239.6,0.0002231,2]
[311812259,1705427444367,-122186.74366401,0.0002231,2]
[311812260,1705427444377,-252.5301879,0.0002231,2]
[311812261,1705427444387,-155.0,0.0002231,2]
[311812262,1705427444397,-155.000002,0.0002231,2]
[311812263,1705427444408,-522.98055675,0.0002231,2]
[311812264,1705427444418,-160.50698877,0.0002231,2]
[311812265,1705427444428,-155.71934129,0.0002231,2]
[311812266,1705427444437,-765.80999369,0.0002231,2]
[311812267,1705427444448,-155.0,0.0002231,2]
[311812268,1705427444457,-203.02938773,0.0002231,2]
[311812269,1705427444468,-232.81366223,0.0002231,2]
[311812270,1705427444478,-2018.96995483,0.0002231,2]
[311812271,1705427444488,-155.0,0.0002231,2]
[311812272,1705427444499,-2300.12187364,0.0002231,2]
[311812273,1705427444509,-646.47285778,0.0002231,2]
[311812274,1705427444519,-155.0,0.0002231,2]
[311812275,1705427444529,-155.0,0.0002231,2]
[311812276,1705427444539,-155.0,0.0002231,2]
[311812277,1705427444549,-300.93559721,0.0002231,2]
[311812278,1705427444559,-155.28533447,0.0002231,2]
[311812279,1705427444569,-21486.34484734,0.0002231,2]
[311812280,1705427444584,-155.0,0.0002231,2]
[311812281,1705427444594,-1254.8177837,0.0002231,2]
[311812282,1705427444604,-155.00002362,0.0002231,2]
[311812283,1705427444614,-171.68625232,0.0002231,2]
[311812284,1705427444624,-521.14554167,0.0002231,2]
[311812285,1705427444634,-514.98040546,0.0002231,2]
[311812286,1705427444644,-1729.19973752,0.0002231,2]
[311812287,1705427444656,-354.12902011,0.0002231,2]
[311812288,1705427444666,-246.39576141,0.0002231,2]
[311812289,1705427444676,-7499.80832538,0.0002231,2]
[311812290,1705427444685,-157.3878743,0.0002231,2]
[311812291,1705427444695,-155.0,0.0002231,2]
[311812292,1705427444705,-155.43162204,0.0002231,2]
[311812293,1705427444715,-155.14275381,0.0002231,2]
[311812294,1705427444725,-155.29862635,0.0002231,2]
[311812295,1705427444735,-285.07168855,0.0002231,2]
[311812296,1705427444745,-155.52499358,0.0002231,2]
[311812297,1705427444757,-250.02290447,0.0002231,2]
[311812298,1705427444767,-155.0,0.0002231,2]
[311812299,1705427444778,-155.0,0.0002231,2]
[311812300,1705427444790,-160.46586719,0.0002231,2]
[311812301,1705427444800,-155.49637355,0.0002231,2]
[311812302,1705427444811,-202.44330084,0.0002231,2]
[311812303,1705427444821,-234.89781562,0.0002231,2]
[311812304,1705427444832,-236.17727712,0.0002231,2]
[311812305,1705427444842,-1427.40182184,0.0002231,2]
[311812306,1705427444852,-376.44759867,0.0002231,2]
[311812307,1705427444863,-155.0,0.0002231,2]
[311812308,1705427444874,-400.06896681,0.0002231,2]
[311812309,1705427444885,-290.04601327,0.0002231,2]
[311812310,1705427444896,-524.5808357,0.0002231,2]
[311812311,1705427444906,-528.68959497,0.0002231,2]
[311812312,1705427444917,-2612.76863363,0.0002231,2]
[311812313,1705427444927,-155.0,0.0002231,2]
[311812314,1705427444937,-155.26650151,0.0002231,2]
[311812315,1705427444947,-4938.90011796,0.0002231,2]
[311812316,1705427444957,-4267.19887316,0.0002231,2]
[311812317,1705427444967,-2034.94250733,0.0002231,2]
[311812318,1705427444977,-1844.61921989,0.0002231,2]
[311812319,1705427444987,-2605.00000774,0.0002231,2]
[311812320,1705427444997,-155.0,0.0002231,2]
[311812321,1705427445007,-155.18243892,0.0002231,2]
[311812322,1705427445017,-1912.9258164,0.0002231,2]
[311812323,1705427445028,-301.90910224,0.0002231,2]
[311812324,1705427445038,-151.0,0.00022312,7]
[311812325,1705427445048,-151.0,0.00022312,7]
[311812326,1705427445058,-97696.82706476,0.00022312,2]
[311812327,1705427445068,-715.62,0.00022313,2]
[311812328,1705427445078,-651.30474215,0.00022313,2]
[311812329,1705427445087,-178.51935977,0.00022336,2]
[311812330,1705427445098,-178.51935977,0.00022378,2]
[311812331,1705427445108,-928.23994283,0.00022398,2]
[311812332,1705427445118,-178.51935977,0.00022421,2]
[311812333,1705427445128,-10000.0,0.00022445,2]
[311812334,1705427445137,-151.0,0.00022445,7]
[311812335,1705427445147,-178.51935977,0.00022463,2]
[311812336,1705427445158,-250.0,0.00022497,2]
[311812337,1705427445167,-87335.2337,0.00022498,2]
[311812338,1705427445177,-151.0,0.00022498,7]
[311812339,1705427445187,-151.0,0.00022498,7]
[311812340,1705427445197,-12294.16339703,0.000225,2]
[311812341,1705427445207,-178.51935977,0.00022505,2]
[311812342,1705427445217,-159.88,0.00022528,2]
[311812343,1705427445227,-178.51935977,0.00022547,2]
[311812344,1705427445244,-205.0,0.00022555,2]
[311812345,1705427445260,-1030.29696616,0.00022556,2]
[311812346,1705427445270,-248.04172499,0.00022556,2]
[311812347,1705427445280,-178.51935977,0.00022589,2]
[311812348,1705427445291,-178.51935977,0.00022631,2]
[311812349,1705427445301,-178.51935977,0.00022674,2]
[311812350,1705427445312,-150.0,0.00022677,2]
[311812351,1705427445322,-717.0,0.00022697,2]
[311812352,1705427445334,-2144.43375818,0.00022697,2]
[311812353,1705427445345,-220.30306813,0.00022697,2]
[311812354,1705427445356,-155.0,0.00022697,2]
[311812355,1705427445368,-940.13112153,0.00022697,2]
[311812356,1705427445379,-2000.0,0.000227,2]
[311812357,1705427445389,-200.0,0.000227,2]
[311812358,1705427445400,-178.51935977,0.00022716,2]
[311812359,1705427445411,-178.51935977,0.00022758,2]
[311812360,1705427445422,-928.23994282,0.000228,2]
[311812361,1705427445432,-1904.69435412,0.000228,2]
[311812362,1705427445444,-182.142374,0.000228,2]
[311812363,1705427445454,-250.16449949,0.000228,2]
[311812364,1705427445465,-178.51935977,0.000228,2]
[311812365,1705427445475,-360.97277743,0.000228,2]
[311812366,1705427445485,-1904.69435412,0.00022809,2]
[311812367,1705427445496,-150.0,0.00022811,2]
[311812368,1705427445506,-150.0,0.00022813,2]
[311812369,1705427445517,-800.0,0.00022815,2]
[311812370,1705427445527,-800.0,0.00022815,2]
[311812371,1705427445537,-800.0,0.00022816,2]
[311812372,1705427445548,-1904.69435412,0.00022818,2]
[311812373,1705427445558,-150.0,0.00022827,2]
[311812374,1705427445568,-1904.69435412,0.00022827,2]
[311812375,1705427445581,-1904.69435412,0.00022836,2]
[311812376,1705427445591,-159.88,0.00022837,2]
[311812377,1705427445601,-1904.69435412,0.00022845,2]
[311812378,1705427445610,-150.0,0.00022849,2]
[311812379,1705427445621,-182.14237398,0.0002285,2]
[311812380,1705427445630,-156.09,0.00022853,2]
[311812381,1705427445640,-1904.69435412,0.00022855,2]
[311812382,1705427445651,-1904.69435412,0.00022864,2]
[311812383,1705427445662,-1904.69435412,0.00022873,2]
[311812384,1705427445672,-1904.69435412,0.00022882,2]
[311812385,1705427445682,-1904.69435412,0.00022891,2]
[311812386,1705427445692,-730.97,0.00022895,2]
[311812387,1705427445702,-1041.09617247,0.00022897,2]
[311812388,1705427445712,-155.0,0.00022897,2]
[311812389,1705427445722,-227.39625135,0.00022897,2]
[311812390,1705427445911,-1134.23173144,0.00022897,2]
[311812391,1705427445921,-363.35757551,0.00022897,2]
[311812392,1705427445930,-5682.39816162,0.00022897,2]
[311812393,1705427445939,-155.0,0.00022897,2]
[311812394,1705427445949,-155.23359381,0.00022897,2]
[311812395,1705427445958,-5000.0,0.00022898,2]
[311812396,1705427445967,-157.04,0.00022898,2]
[311812397,1705427445977,-716.2,0.00022898,2]
[311812398,1705427445986,-30934.84420655,0.00022899,6]
[311812399,1705427445995,-732.49,0.000229,2]
[311812400,1705427446004,-151.0,0.000229,7]
[311812401,1705427446017,-721.55,0.000229,2]
[311812402,1705427446026,-4706.671699,0.000229,2]
[311812403,1705427446035,-3000.0,0.000229,2]
[311812404,1705427446045,-969264.599966,0.000229,2]
[311812405,1705427446054,-5800.0,0.000229,2]
[311812407,1705427446064,-162.09946554,0.000229,2]
[311812409,1705427446073,-151.0,0.000229,7]
[311812411,1705427446083,-1904.69435412,0.000229,2]
[311812413,1705427446092,-250.0,0.000229,2]
[311812415,1705427446101,-182.14237398,0.000229,2]
[311812417,1705427446111,-151.0,0.000229,7]
[311812419,1705427446121,-151.0,0.000229,7]
[311812420,1705427446130,-151.0,0.000229,7]
[311812421,1705427446139,-319.545544,0.000229,7]
[311812422,1705427446149,-319.545544,0.000229,7]
[311812423,1705427446159,-151.0,0.000229,7]
[311812424,1705427446168,-180.654129,0.000229,7]
[311812426,1705427446177,-4150.77096405,0.000229,2]
[311812427,1705427446189,-4150.77096405,0.000229,2]
[311812428,1705427446197,-4150.77096405,0.000229,2]
[311812429,1705427446206,-4150.77096405,0.000229,2]
[311812430,1705427446216,-4150.77096405,0.000229,2]
[311812431,1705427446225,-4150.77096405,0.000229,2]
[311812432,1705427446234,-4150.77096405,0.000229,2]
[311812433,1705427446245,-4150.77096405,0.000229,2]
[311812434,1705427446254,-4150.77096405,0.000229,2]
[311812435,1705427446263,-4150.77096405,0.000229,2]
[311812436,1705427446273,-4150.77096405,0.000229,2]
[311812437,1705427446282,-4150.77096405,0.000229,2]
[311812438,1705427446292,-4150.77096405,0.000229,2]
[311812439,1705427446301,-4150.77096405,0.000229,2]
[311812440,1705427446310,-4150.77096405,0.000229,2]
[311812441,1705427446319,-4150.77096405,0.000229,2]
[311812442,1705427446329,-151.0,0.000229,7]
[311812443,1705427446339,-151.0,0.000229,7]
[311812444,1705427446348,-151.0,0.000229,7]
[311812445,1705427446357,-1030.29696616,0.000229,2]
[311812446,1705427446367,-173.85,0.000229,2]
[311812447,1705427446376,-248.04172499,0.000229,2]
[311812448,1705427446386,-150.0,0.00022921,2]
[311812449,1705427446395,-2000.0,0.00022927,2]
[311812450,1705427446404,-200.0,0.00022927,2]
[311812451,1705427446416,-155.24585568,0.00022997,2]
[311812452,1705427446425,-155.16612944,0.00022997,2]
[311812453,1705427446435,-1177.70454894,0.00022997,2]
[311812454,1705427446444,-1042.12567212,0.00022997,2]
[311812455,1705427446453,-373.92735783,0.00022997,2]
[311812456,1705427446464,-474.07011327,0.00022997,2]
[311812457,1705427446473,-196.8387694,0.00022997,2]
[311812458,1705427446482,-758.57178046,0.00022997,2]
[311812459,1705427446492,-384.0309261,0.00022997,2]
[311812460,1705427446502,-507.17379745,0.00022998,2]
[311812461,1705427446511,-155.68058134,0.00022998,2]
[311812462,1705427446521,-2054.22387362,0.00022998,2]
[311812463,1705427446530,-2193.68807921,0.00022998,2]
[311812464,1705427446539,-709.53,0.00022999,2]
[311812465,1705427446548,-151.0,0.00022999,7]
[311812466,1705427446557,-151.0,0.00022999,7]
[311812467,1705427446567,-151.0,0.00022999,7]
[311812468,1705427446577,-319.545544,0.00022999,7]
[311812469,1705427446588,-319.545544,0.00022999,7]
[311812470,1705427446597,-151.0,0.00022999,7]
[311812471,1705427446608,-151.0,0.00022999,7]
[311812472,1705427446618,-151.0,0.00022999,7]
[311812473,1705427446627,-1269442.09753924,0.00022999,2]
[311812475,1705427446637,-341.38738642,0.00022999,10]
[311812477,1705427446646,-300.0,0.00022999,2]
[311812479,1705427446656,-300.0,0.00022999,2]
[311812481,1705427446666,-300.0,0.00022999,2]
[311812483,1705427446675,-300.0,0.00022999,2]
[311812485,1705427446684,-300.0,0.00022999,2]
[311812487,1705427446693,-300.0,0.00022999,2]
[311812489,1705427446702,-300.0,0.00022999,2]
[311812491,1705427446710,-300.0,0.00022999,2]
[311812492,1705427446719,-300.0,0.00022999,2]
[311812494,1705427446728,-300.0,0.00022999,2]
[311812496,1705427446737,-300.0,0.00022999,2]
[311812498,1705427446746,-300.0,0.00022999,2]
[311812501,1705427446756,-8037856.77919509,0.00023,2]
[311812504,1705427446766,-1241567.54252852,0.00023,2]
[311812507,1705427446775,-2588458.18707303,0.00023,2]
[311812510,1705427446784,-151.0,0.00023,7]
[311812513,1705427446794,-151.0,0.00023,7]
[311812516,1705427446803,-151.0,0.00023,7]
[311812519,1705427446812,-166.021604,0.00023,2]
[311812522,1705427446821,-500.0,0.00023,2]
[311812525,1705427446830,-151.0,0.00023,7]
[311812528,1705427446840,-151.0,0.00023,7]
[311812531,1705427446849,-151.0,0.00023,7]
[311812534,1705427446858,-151.0,0.00023,7]
[311812537,1705427446867,-151.0,0.00023,7]
[311812540,1705427446877,-151.0,0.00023,7]
[311812543,1705427446886,-319.545544,0.00023,7]
[311812546,1705427446895,-319.545544,0.00023,7]
[311812549,1705427446904,-319.545544,0.00023,7]
[311812552,1705427446914,-319.545544,0.00023,7]
[311812555,1705427446923,-319.545544,0.00023,7]
[311812558,1705427446932,-319.545544,0.00023,7]
[311812561,1705427446941,-3000.0,0.00023,2]
[311812564,1705427446950,-151.0,0.00023,7]
[311812567,1705427446960,-202.66999155,0.00023,7]
[311812569,1705427446969,-151.0,0.00023,7]
[311812572,1705427446978,-151.0,0.00023,7]
[311812575,1705427446988,-151.0,0.00023,7]
[311812578,1705427446997,-151.0,0.00023,7]
[311812581,1705427447006,-151.0,0.00023,7]
[311812584,1705427447016,-218.170146,0.00023,7]
[311812587,1705427447025,-156.09,0.00023101,2]
[311812590,1705427447034,-159.88,0.00023145,2]
[311812593,1705427447043,-615.27642738,0.00023156,2]
[311812595,1705427447052,-200.0,0.00023156,2]
[311812597,1705427447061,-832.9,0.00023237,2]
[311812599,1705427447070,-10000.0,0.00023245,2]
[311812601,1705427447079,-156.44,0.00023253,2]
[311812603,1705427447088,-500.0,0.00023288,2]
[311812605,1705427447098,-739.28125002,0.00023288,2]
[311812607,1705427447107,-500.0,0.00023288,2]
[311812609,1705427447117,-739.28125002,0.00023288,2]
[311812611,1705427447126,-500.0,0.00023288,2]
[311812613,1705427447136,-739.28125002,0.00023288,2]
[311812615,1705427447147,-500.0,0.00023288,2]
[311812617,1705427447155,-739.28125002,0.00023288,2]
[311812618,1705427447165,-500.0,0.00023288,2]
[311812619,1705427447176,-500.0,0.00023288,2]
[311812620,1705427447186,-739.28125002,0.00023288,2]
[311812621,1705427447197,-739.28125002,0.00023288,2]
[311812622,1705427447207,-739.28125002,0.00023288,2]
[311812623,1705427447217,-739.28125002,0.00023288,2]
[311812624,1705427447226,-739.28125002,0.00023288,2]
[311812625,1705427447235,-384.25487978,0.00023288,2]
[311812626,1705427447245,-739.28125002,0.00023288,2]
[311812627,1705427447255,-500.0,0.00023288,2]
[311812628,1705427447264,-739.28125002,0.00023288,2]
[311812629,1705427447274,-500.0,0.00023288,2]
[311812630,1705427447283,-500.0,0.00023288,2]
[311812631,1705427447292,-739.28125002,0.00023288,2]
[311812632,1705427447302,-500.0,0.00023288,2]
[311812633,1705427447311,-739.28125002,0.00023288,2]
[311812634,1705427447320,-500.0,0.00023288,2]
[311812635,1705427447330,-500.0,0.00023288,2]
[311812636,1705427447339,-739.28125002,0.00023288,2]
[311812637,1705427447348,-500.0,0.00023288,2]
[311812638,1705427447358,-739.28125002,0.00023288,2]
[311812639,1705427447367,-500.0,0.00023288,2]
[311812640,1705427447376,-739.28125002,0.00023288,2]
[311812641,1705427447386,-739.28125002,0.00023288,2]
[311812642,1705427447395,-500.0,0.00023288,2]
[311812643,1705427447404,-622.10637196,0.00023288,2]
[311812644,1705427447414,-628.3890625,0.00023288,2]
[311812645,1705427447423,-500.0,0.00023288,2]
[311812646,1705427447433,-500.0,0.00023288,2]
[311812647,1705427447442,-500.0,0.00023288,2]
[311812648,1705427447451,-500.0,0.00023288,2]
[311812649,1705427447460,-500.0,0.00023288,2]
[311812650,1705427447470,-500.0,0.00023288,2]
[311812651,1705427447479,-377.34929032,0.00023288,2]
[311812652,1705427447489,-500.0,0.00023288,2]
[311812653,1705427447499,-500.0,0.00023288,2]
[311812654,1705427447508,-500.0,0.00023288,2]
[311812655,1705427447517,-500.0,0.00023288,2]
[311812656,1705427447527,-500.0,0.00023288,2]
[311812657,1705427447538,-391.6056983,0.00023288,2]
[311812658,1705427447548,-500.0,0.00023288,2]
[311812659,1705427447558,-395.14763087,0.00023288,4]
[311812660,1705427447570,-461.14381438,0.00023288,4]